[Event "Late-Titled-Tuesday-Blitz-September-12-2023"]
[Site "Chess.com"]
[Date "2023.09.12"]
[Round "10"]
[White "Msb2"]
[Black "KaydenTroffChess"]
[Result "1-0"]
[WhiteElo "3091"]
[BlackElo "2757"]
[TimeControl "180+1"]
[EndTime "15:50:56 PDT"]
[Termination "Msb2 won by resignation"]

1. d4 {[%clk 0:03:00.9]} 1... Nf6 {[%clk 0:02:57.6]} 2. c4 {[%clk 0:03:01.4]}
2... g6 {[%clk 0:02:55.9]} 3. Nc3 {[%clk 0:03:01.7]} 3... d5 {[%clk 0:02:55.4]}
4. cxd5 {[%clk 0:03:02.6]} 4... Nxd5 {[%clk 0:02:56]} 5. e4 {[%clk 0:03:03.3]}
5... Nxc3 {[%clk 0:02:56.3]} 6. bxc3 {[%clk 0:03:04.2]} 6... Bg7 {[%clk
0:02:55.8]} 7. Nf3 {[%clk 0:03:05]} 7... c5 {[%clk 0:02:55.9]} 8. Bb5+ {[%clk
0:03:05.7]} 8... Nc6 {[%clk 0:02:56.1]} 9. O-O {[%clk 0:03:06.3]} 9... cxd4
{[%clk 0:02:51.7]} 10. cxd4 {[%clk 0:03:07.2]} 10... O-O {[%clk 0:02:50.3]} 11.
Bxc6 {[%clk 0:03:07.9]} 11... bxc6 {[%clk 0:02:50.1]} 12. Qc2 {[%clk 0:03:08.8]}
12... Bg4 {[%clk 0:02:48.1]} 13. Ne5 {[%clk 0:03:09.3]} 13... Qxd4 {[%clk
0:02:44.6]} 14. Bb2 {[%clk 0:03:10]} 14... Qb6 {[%clk 0:02:42.6]} 15. Rab1
{[%clk 0:03:10.7]} 15... Bxe5 {[%clk 0:02:41.4]} 16. Bxe5 {[%clk 0:03:11.6]}
16... Qa6 {[%clk 0:02:41.8]} 17. Qc5 {[%clk 0:02:57.5]} 17... Rfe8 {[%clk
0:02:31.3]} 18. Ba1 {[%clk 0:02:53.2]} 18... Qxa2 {[%clk 0:02:15.4]} 19. Qc3
{[%clk 0:02:52.1]} 19... f6 {[%clk 0:02:14]} 20. e5 {[%clk 0:02:52.6]} 20... Qe6
{[%clk 0:01:57.8]} 21. Rfe1 {[%clk 0:02:42.8]} 21... f5 {[%clk 0:01:30.2]} 22.
Qe3 {[%clk 0:02:36.4]} 22... a5 {[%clk 0:01:24]} 23. f3 {[%clk 0:02:36.3]} 23...
Bh5 {[%clk 0:01:23.7]} 24. h3 {[%clk 0:02:37]} 24... Reb8 {[%clk 0:01:01.3]} 25.
Qg5 {[%clk 0:02:31.3]} 25... Rb4 {[%clk 0:00:48.2]} 26. Bc3 {[%clk 0:02:10.6]}
26... Rc4 {[%clk 0:00:43.1]} 27. Rb7 {[%clk 0:02:04.2]} 27... Re8 {[%clk
0:00:21.4]} 28. Bxa5 {[%clk 0:02:02.5]} 28... Rc5 {[%clk 0:00:21.5]} 29. Bc7
{[%clk 0:01:50.5]} 29... Rb5 {[%clk 0:00:20.1]} 30. Ra7 {[%clk 0:01:49.7]} 30...
Qd5 {[%clk 0:00:14.4]} 31. Ra3 {[%clk 0:01:26.7]} 31... Rb2 {[%clk 0:00:11.6]}
32. e6 {[%clk 0:01:18.8]} 32... Qd4+ {[%clk 0:00:10.6]} 33. Rae3 {[%clk
0:01:10.8]} 33... Qd2 {[%clk 0:00:10.9]} 34. Be5 {[%clk 0:01:05.8]} 34... Rc2
{[%clk 0:00:08.3]} 35. Qg3 {[%clk 0:00:40.2]} 35... Rc5 {[%clk 0:00:05.3]} 36.
Ba1 {[%clk 0:00:37.8]} 36... Rc1 {[%clk 0:00:04.6]} 37. Qe5 {[%clk 0:00:34.8]}
37... Rxa1 {[%clk 0:00:03.6]} 38. Qxa1 {[%clk 0:00:31]} 38... f4 {[%clk
0:00:03.2]} 39. R3e2 {[%clk 0:00:29.6]} 39... Qd6 {[%clk 0:00:03.8]} 40. Qe5
{[%clk 0:00:29.1]} 40... Qxe5 {[%clk 0:00:03.9]} 41. Rxe5 {[%clk 0:00:30]} 41...
Kg7 {[%clk 0:00:04.5]} 42. h4 {[%clk 0:00:18.8]} 42... Kf6 {[%clk 0:00:04.5]}
43. Rc5 {[%clk 0:00:19.5]} 43... h6 {[%clk 0:00:04.6]} 44. Ree5 {[%clk 0:00:17]}
44... Rc8 {[%clk 0:00:04.8]} 45. Kh2 {[%clk 0:00:17.2]} 45... Rc7 {[%clk
0:00:05.1]} 46. Re4 {[%clk 0:00:16.6]} 46... g5 {[%clk 0:00:05.1]} 47. hxg5+
{[%clk 0:00:17.5]} 47... hxg5 {[%clk 0:00:05.9]} 48. Ree5 {[%clk 0:00:18.4]}
48... Bg6 {[%clk 0:00:05.9]} 49. Rxg5 {[%clk 0:00:18.7]} 49... Bd3 {[%clk
0:00:06.7]} 50. Rg4 {[%clk 0:00:18]} 50... Kxe6 {[%clk 0:00:07.1]} 51. Rxf4
{[%clk 0:00:18.6]} 51... Kd6 {[%clk 0:00:07.8]} 52. Rc3 {[%clk 0:00:19]} 52...
Bb5 {[%clk 0:00:08.5]} 53. Rd4+ {[%clk 0:00:18.7]} 53... Ke5 {[%clk 0:00:08.6]}
54. Re4+ {[%clk 0:00:19.1]} 54... Kf6 {[%clk 0:00:08.7]} 55. Rce3 {[%clk
0:00:17.9]} 55... c5 {[%clk 0:00:09]} 56. Re6+ {[%clk 0:00:18.3]} 56... Kf7
{[%clk 0:00:09.3]} 57. R6e5 {[%clk 0:00:19.2]} 57... Bd7 {[%clk 0:00:09.3]} 58.
Rxe7+ {[%clk 0:00:16.8]} 58... Kf6 {[%clk 0:00:09.4]} 59. R7e4 {[%clk
0:00:16.8]} 59... Bf5 {[%clk 0:00:09.6]} 60. Rc4 {[%clk 0:00:16.5]} 60... Be6
{[%clk 0:00:09.5]} 61. Rf4+ {[%clk 0:00:16.8]} 61... Kg5 {[%clk 0:00:09.9]} 62.
Kg3 {[%clk 0:00:14.7]} 62... Bc8 {[%clk 0:00:08.6]} 63. Re5+ {[%clk 0:00:15]}
63... Kg6 {[%clk 0:00:09.3]} 64. Rc4 {[%clk 0:00:15.3]} 64... Kf6 {[%clk
0:00:09.1]} 65. Rexc5 {[%clk 0:00:15.2]} 65... Rg7+ {[%clk 0:00:10]} 66. Kf2
{[%clk 0:00:15.6]} 66... Be6 {[%clk 0:00:10.9]} 67. Rc6 {[%clk 0:00:15.7]} 67...
Ke5 {[%clk 0:00:11]} 68. Re4+ {[%clk 0:00:16]} 68... Kd5 {[%clk 0:00:10.8]} 69.
Rcxe6 {[%clk 0:00:16.9]} 1-0

[Event "Late-Titled-Tuesday-Blitz-September-12-2023"]
[Site "Chess.com"]
[Date "2023.09.12"]
[Round "10"]
[White "GarayevKanan"]
[Black "MathiasWomacka"]
[Result "1-0"]
[WhiteElo "2729"]
[BlackElo "2543"]
[TimeControl "180+1"]
[EndTime "15:50:56 PDT"]
[Termination "GarayevKanan won on time"]

1. c4 {[%clk 0:03:00.9]} 1... c5 {[%clk 0:02:59.1]} 2. Nf3 {[%clk 0:02:56.6]}
2... Nf6 {[%clk 0:02:59.5]} 3. Nc3 {[%clk 0:02:54.8]} 3... e6 {[%clk 0:02:59.2]}
4. e3 {[%clk 0:02:54.2]} 4... d5 {[%clk 0:02:57.5]} 5. d4 {[%clk 0:02:54.8]}
5... Nc6 {[%clk 0:02:56.7]} 6. a3 {[%clk 0:02:54.7]} 6... Ne4 {[%clk 0:02:55.6]}
7. Bd3 {[%clk 0:02:37.6]} 7... Nxc3 {[%clk 0:02:55.2]} 8. bxc3 {[%clk
0:02:38.5]} 8... Be7 {[%clk 0:02:54.9]} 9. O-O {[%clk 0:02:34.7]} 9... O-O
{[%clk 0:02:54.2]} 10. Bb2 {[%clk 0:02:30.2]} 10... b6 {[%clk 0:02:48.1]} 11.
cxd5 {[%clk 0:02:25.9]} 11... exd5 {[%clk 0:02:46.3]} 12. c4 {[%clk 0:02:22.2]}
12... dxc4 {[%clk 0:02:27.6]} 13. Bxc4 {[%clk 0:02:23.1]} 13... Bf6 {[%clk
0:02:22]} 14. Qc1 {[%clk 0:02:04.3]} 14... cxd4 {[%clk 0:02:16.1]} 15. Nxd4
{[%clk 0:02:01.6]} 15... Nxd4 {[%clk 0:02:14.3]} 16. Bxd4 {[%clk 0:01:55.6]}
16... Bxd4 {[%clk 0:02:13]} 17. exd4 {[%clk 0:01:39.7]} 17... Qxd4 {[%clk
0:02:10.1]} 18. Rd1 {[%clk 0:01:38.4]} 18... Qf6 {[%clk 0:02:06.1]} 19. Bd5
{[%clk 0:01:36.2]} 19... Rb8 {[%clk 0:02:05.7]} 20. Qc7 {[%clk 0:01:35.3]} 20...
Be6 {[%clk 0:02:03.9]} 21. Bf3 {[%clk 0:01:28.1]} 21... a5 {[%clk 0:01:55.6]}
22. Rab1 {[%clk 0:01:15.1]} 22... Rfc8 {[%clk 0:01:50.4]} 23. Qd6 {[%clk
0:01:07.9]} 23... Bf5 {[%clk 0:01:43.3]} 24. Qxf6 {[%clk 0:01:01.6]} 24... gxf6
{[%clk 0:01:44.2]} 25. Rb5 {[%clk 0:01:00.8]} 25... Bc2 {[%clk 0:01:32.2]} 26.
Re1 {[%clk 0:00:52.7]} 26... Bd3 {[%clk 0:01:26.8]} 27. Rd5 {[%clk 0:00:52.8]}
27... Rd8 {[%clk 0:01:22.3]} 28. Rxd8+ {[%clk 0:00:35.5]} 28... Rxd8 {[%clk
0:01:21.9]} 29. Rd1 {[%clk 0:00:36.4]} 29... Rd7 {[%clk 0:01:08.3]} 30. g4
{[%clk 0:00:34.9]} 30... Kf8 {[%clk 0:00:51]} 31. Kg2 {[%clk 0:00:27.5]} 31...
Ke7 {[%clk 0:00:50.2]} 32. Kg3 {[%clk 0:00:27.1]} 32... Bc4 {[%clk 0:00:44.2]}
33. Re1+ {[%clk 0:00:22.3]} 33... Kd6 {[%clk 0:00:43.7]} 34. Rd1+ {[%clk
0:00:22.9]} 34... Kc7 {[%clk 0:00:38.5]} 35. Re1 {[%clk 0:00:22.2]} 35... b5
{[%clk 0:00:37.8]} 36. Re8 {[%clk 0:00:16.2]} 36... Kb6 {[%clk 0:00:35]} 37. Kf4
{[%clk 0:00:15.3]} 37... Be6 {[%clk 0:00:27]} 38. Rb8+ {[%clk 0:00:10]} 38...
Kc5 {[%clk 0:00:27]} 39. Rc8+ {[%clk 0:00:10.3]} 39... Kd4 {[%clk 0:00:27]} 40.
Bc6 {[%clk 0:00:08.9]} 40... Rd6 {[%clk 0:00:19.9]} 41. Rc7 {[%clk 0:00:09.6]}
41... b4 {[%clk 0:00:19.4]} 42. axb4 {[%clk 0:00:10.5]} 42... axb4 {[%clk
0:00:19.6]} 43. Be4 {[%clk 0:00:11.1]} 43... b3 {[%clk 0:00:19]} 44. Bxh7 {[%clk
0:00:11.4]} 44... Rb6 {[%clk 0:00:16.7]} 45. h4 {[%clk 0:00:11]} 45... b2 {[%clk
0:00:16.2]} 46. Bb1 {[%clk 0:00:11.2]} 46... Rb4 {[%clk 0:00:14.2]} 47. f3
{[%clk 0:00:09.7]} 47... Kd5+ {[%clk 0:00:13.5]} 48. Kg3 {[%clk 0:00:09.8]}
48... Kd6 {[%clk 0:00:13]} 49. Rc3 {[%clk 0:00:10.2]} 49... Rd4 {[%clk
0:00:11.6]} 50. h5 {[%clk 0:00:08.3]} 50... Rd2 {[%clk 0:00:11.3]} 51. h6 {[%clk
0:00:04.7]} 51... Rd1 {[%clk 0:00:10.6]} 52. Rd3+ {[%clk 0:00:02.9]} 52... Rxd3
{[%clk 0:00:09.4]} 53. Bxd3 {[%clk 0:00:03.8]} 53... Bc4 {[%clk 0:00:07.6]} 54.
Bb1 {[%clk 0:00:03]} 54... Ke7 {[%clk 0:00:05]} 55. h7 {[%clk 0:00:03.5]} 1-0

[Event "Late-Titled-Tuesday-Blitz-September-12-2023"]
[Site "Chess.com"]
[Date "2023.09.12"]
[Round "10"]
[White "Zampronha1971"]
[Black "aNaartjieZA"]
[Result "0-1"]
[WhiteElo "2289"]
[BlackElo "2434"]
[TimeControl "180+1"]
[EndTime "15:50:58 PDT"]
[Termination "aNaartjieZA won on time"]

1. e4 {[%clk 0:03:00.9]} 1... e6 {[%clk 0:03:00.3]} 2. d4 {[%clk 0:03:00.5]}
2... d5 {[%clk 0:03:00.6]} 3. Nc3 {[%clk 0:03:01.4]} 3... Bb4 {[%clk 0:03:00.4]}
4. e5 {[%clk 0:03:01.4]} 4... c5 {[%clk 0:03:00.6]} 5. a3 {[%clk 0:03:01.8]}
5... Bxc3+ {[%clk 0:03:00.9]} 6. bxc3 {[%clk 0:03:02.7]} 6... Ne7 {[%clk
0:03:01.3]} 7. Qg4 {[%clk 0:03:02.2]} 7... Qc7 {[%clk 0:03:01.7]} 8. Qxg7 {[%clk
0:03:00.8]} 8... Rg8 {[%clk 0:03:02]} 9. Qxh7 {[%clk 0:03:01.5]} 9... cxd4
{[%clk 0:03:02.2]} 10. Ne2 {[%clk 0:03:02.1]} 10... Nbc6 {[%clk 0:03:02]} 11. f4
{[%clk 0:03:02.2]} 11... dxc3 {[%clk 0:03:02]} 12. Qd3 {[%clk 0:03:02.1]} 12...
d4 {[%clk 0:03:02.4]} 13. Nxd4 {[%clk 0:03:01.6]} 13... Nxd4 {[%clk 0:03:02.7]}
14. Qxd4 {[%clk 0:03:02.5]} 14... Bd7 {[%clk 0:03:02.8]} 15. Qf2 {[%clk
0:03:01]} 15... Qc6 {[%clk 0:02:59.5]} 16. Rg1 {[%clk 0:02:59.4]} 16... Nf5
{[%clk 0:02:46.6]} 17. g3 {[%clk 0:02:46.7]} 17... Qe4+ {[%clk 0:02:35.6]} 18.
Qe2 {[%clk 0:02:35.5]} 18... Qd4 {[%clk 0:02:35.2]} 19. Qf2 {[%clk 0:02:32.5]}
19... Bc6 {[%clk 0:02:21.8]} 20. Bd3 {[%clk 0:02:25.6]} 20... O-O-O {[%clk
0:02:09.4]} 21. Qxd4 {[%clk 0:02:15.6]} 21... Nxd4 {[%clk 0:02:08.7]} 22. Kf2
{[%clk 0:02:16.1]} 22... Nf3 {[%clk 0:02:06.8]} 23. Be3 {[%clk 0:01:57.7]} 23...
Nxg1 {[%clk 0:02:04.4]} 24. Rxg1 {[%clk 0:01:58.6]} 24... b6 {[%clk 0:01:59]}
25. h4 {[%clk 0:01:57.2]} 25... Rh8 {[%clk 0:01:56.8]} 26. Rb1 {[%clk
0:01:33.2]} 26... Bd5 {[%clk 0:01:43]} 27. Rb4 {[%clk 0:01:06.3]} 27... Kc7
{[%clk 0:01:38.1]} 28. Bd4 {[%clk 0:01:00.6]} 28... Bc6 {[%clk 0:01:23.3]} 29.
Bxc3 {[%clk 0:00:58.2]} 29... Rd5 {[%clk 0:01:21.7]} 30. Rb1 {[%clk 0:00:50.1]}
30... a5 {[%clk 0:01:16.8]} 31. Ra1 {[%clk 0:00:41.3]} 31... Ba4 {[%clk
0:01:12.2]} 32. Rd1 {[%clk 0:00:30.6]} 32... Rc5 {[%clk 0:01:08.5]} 33. Bd4
{[%clk 0:00:27.8]} 33... Rd5 {[%clk 0:01:08.6]} 34. Be3 {[%clk 0:00:25.9]} 34...
Rhd8 {[%clk 0:01:06.7]} 35. Re1 {[%clk 0:00:22.6]} 35... Rh8 {[%clk 0:01:01.6]}
36. Rh1 {[%clk 0:00:20.9]} 36... Bc6 {[%clk 0:01:01.4]} 37. Re1 {[%clk
0:00:20.5]} 37... Bb5 {[%clk 0:00:52]} 38. Rd1 {[%clk 0:00:19.8]} 38... Bxd3
{[%clk 0:00:51.2]} 39. cxd3 {[%clk 0:00:20.1]} 39... Rb5 {[%clk 0:00:49.8]} 40.
Rd2 {[%clk 0:00:19.3]} 40... Rb3 {[%clk 0:00:49.1]} 41. Rc2+ {[%clk 0:00:18.6]}
41... Kd7 {[%clk 0:00:48.7]} 42. a4 {[%clk 0:00:17.8]} 42... Rb8 {[%clk
0:00:47.3]} 43. h5 {[%clk 0:00:17.4]} 43... Rxd3 {[%clk 0:00:46.4]} 44. g4
{[%clk 0:00:16.1]} 44... Ra3 {[%clk 0:00:44.9]} 45. Rd2+ {[%clk 0:00:11.7]}
45... Kc6 {[%clk 0:00:43.2]} 46. g5 {[%clk 0:00:12.1]} 46... Rxa4 {[%clk
0:00:42.7]} 47. Kf3 {[%clk 0:00:12]} 47... b5 {[%clk 0:00:40.8]} 48. Rc2+ {[%clk
0:00:12.3]} 48... Kd7 {[%clk 0:00:39]} 49. Rg2 {[%clk 0:00:12.2]} 49... Rh8
{[%clk 0:00:36.3]} 50. g6 {[%clk 0:00:11.9]} 50... fxg6 {[%clk 0:00:36.1]} 51.
hxg6 {[%clk 0:00:12.2]} 51... Rc4 {[%clk 0:00:34.6]} 52. Kg4 {[%clk 0:00:11.5]}
52... Re4 {[%clk 0:00:33.4]} 53. Bb6 {[%clk 0:00:10]} 53... a4 {[%clk
0:00:33.2]} 54. Kg5 {[%clk 0:00:10.1]} 54... b4 {[%clk 0:00:32.6]} 55. Rf2
{[%clk 0:00:06.7]} 55... a3 {[%clk 0:00:31]} 56. Bc5 {[%clk 0:00:05.7]} 56...
Kc6 {[%clk 0:00:30.8]} 57. Bxb4 {[%clk 0:00:05.7]} 57... Rxb4 {[%clk 0:00:30.5]}
58. g7 {[%clk 0:00:06.3]} 58... Rg8 {[%clk 0:00:30]} 59. Kf6 {[%clk 0:00:06.6]}
59... Kd5 {[%clk 0:00:28.1]} 60. Kf7 {[%clk 0:00:06.8]} 60... Rbb8 {[%clk
0:00:27.8]} 61. Ra2 {[%clk 0:00:04.8]} 61... Ra8 {[%clk 0:00:27.1]} 62. Rxa3
{[%clk 0:00:05.2]} 62... Rxg7+ {[%clk 0:00:25.9]} 63. Kxg7 {[%clk 0:00:06.1]}
63... Rxa3 {[%clk 0:00:26.1]} 0-1

[Event "Late-Titled-Tuesday-Blitz-September-12-2023"]
[Site "Chess.com"]
[Date "2023.09.12"]
[Round "10"]
[White "MightyGMpretender"]
[Black "CrushingKings"]
[Result "1-0"]
[WhiteElo "2726"]
[BlackElo "2514"]
[TimeControl "180+1"]
[EndTime "15:51:11 PDT"]
[Termination "MightyGMpretender won by resignation"]

1. e4 {[%clk 0:02:56.3]} 1... g6 {[%clk 0:02:21.4]} 2. d4 {[%clk 0:02:53.3]}
2... Bg7 {[%clk 0:02:22.3]} 3. Nf3 {[%clk 0:02:53.2]} 3... c6 {[%clk 0:02:22.9]}
4. h3 {[%clk 0:02:42.3]} 4... d5 {[%clk 0:02:23.3]} 5. e5 {[%clk 0:02:42.6]}
5... f6 {[%clk 0:02:22.9]} 6. c4 {[%clk 0:02:38.2]} 6... fxe5 {[%clk 0:02:20]}
7. dxe5 {[%clk 0:02:38.5]} 7... Nh6 {[%clk 0:02:18.9]} 8. Nc3 {[%clk 0:02:37.5]}
8... e6 {[%clk 0:02:18.4]} 9. cxd5 {[%clk 0:02:34.6]} 9... cxd5 {[%clk
0:02:13.8]} 10. Bb5+ {[%clk 0:02:31.8]} 10... Bd7 {[%clk 0:02:10.9]} 11. O-O
{[%clk 0:02:29.1]} 11... O-O {[%clk 0:02:10.5]} 12. Bxh6 {[%clk 0:02:24.6]}
12... Bxh6 {[%clk 0:02:09.8]} 13. Nh2 {[%clk 0:02:18.8]} 13... Bxb5 {[%clk
0:02:01]} 14. Nxb5 {[%clk 0:02:18.5]} 14... Nc6 {[%clk 0:02:01.8]} 15. Nd4
{[%clk 0:02:14.5]} 15... Nxd4 {[%clk 0:01:32.6]} 16. Qxd4 {[%clk 0:02:14.2]}
16... Rf4 {[%clk 0:01:33.3]} 17. Qd2 {[%clk 0:02:06.6]} 17... Qf8 {[%clk
0:01:21.4]} 18. Qd3 {[%clk 0:01:50.4]} 18... Qf5 {[%clk 0:00:44.3]} 19. Qb5
{[%clk 0:01:41.9]} 19... b6 {[%clk 0:00:35.9]} 20. Rac1 {[%clk 0:01:10.7]} 20...
Rf8 {[%clk 0:00:31.1]} 21. Ng4 {[%clk 0:01:06.3]} 21... Bg7 {[%clk 0:00:29.7]}
22. Rc7 {[%clk 0:01:03.9]} 22... h5 {[%clk 0:00:29.7]} 23. Qd7 {[%clk
0:01:02.8]} 23... Qf7 {[%clk 0:00:28]} 24. Nf6+ {[%clk 0:00:56.5]} 24... Bxf6
{[%clk 0:00:27.5]} 25. exf6 {[%clk 0:00:56.9]} 25... Qxd7 {[%clk 0:00:26.3]} 26.
Rxd7 {[%clk 0:00:56.4]} 26... Rf7 {[%clk 0:00:27]} 27. Rd8+ {[%clk 0:00:53.6]}
27... Kh7 {[%clk 0:00:26.8]} 28. Re1 {[%clk 0:00:49.4]} 28... R4xf6 {[%clk
0:00:26.9]} 29. f3 {[%clk 0:00:50.2]} 29... Rc7 {[%clk 0:00:09.1]} 30. Re2
{[%clk 0:00:50.4]} 30... Kg7 {[%clk 0:00:08.4]} 31. Kf2 {[%clk 0:00:40.8]} 31...
Kf7 {[%clk 0:00:07.3]} 32. Rh8 {[%clk 0:00:41.5]} 32... Kg7 {[%clk 0:00:07.5]}
33. Re8 {[%clk 0:00:41.1]} 33... Kf7 {[%clk 0:00:04.1]} 34. Rh8 {[%clk
0:00:41.5]} 34... Kg7 {[%clk 0:00:02.8]} 35. Ra8 {[%clk 0:00:40.8]} 35... Kf7
{[%clk 0:00:02.9]} 36. h4 {[%clk 0:00:41.1]} 36... Ke7 {[%clk 0:00:03.2]} 37.
Rg8 {[%clk 0:00:39.5]} 37... Kd6 {[%clk 0:00:03.5]} 38. Rd2 {[%clk 0:00:36]}
38... e5 {[%clk 0:00:02.5]} 39. Rd8+ {[%clk 0:00:35.8]} 39... Rd7 {[%clk
0:00:02.7]} 40. Rxd5+ {[%clk 0:00:35.7]} 40... Kxd5 {[%clk 0:00:03.2]} 41. Rxd7+
{[%clk 0:00:36.6]} 41... Kc4 {[%clk 0:00:03.8]} 42. Rxa7 {[%clk 0:00:36.8]}
42... Kd3 {[%clk 0:00:04.4]} 43. b3 {[%clk 0:00:26]} 43... e4 {[%clk 0:00:04]}
44. Rd7+ {[%clk 0:00:22.6]} 44... Kc3 {[%clk 0:00:04.5]} 45. Ke3 {[%clk
0:00:22.1]} 45... exf3 {[%clk 0:00:05.4]} 46. gxf3 {[%clk 0:00:22.6]} 46... Kb2
{[%clk 0:00:06.3]} 47. Rd2+ {[%clk 0:00:22.3]} 47... Ka3 {[%clk 0:00:07.2]} 48.
Rg2 {[%clk 0:00:22.9]} 48... b5 {[%clk 0:00:06.7]} 49. Rg5 {[%clk 0:00:18.6]}
49... b4 {[%clk 0:00:07.1]} 50. Ra5+ {[%clk 0:00:19.3]} 50... Kb2 {[%clk
0:00:07.6]} 51. Ke4 {[%clk 0:00:18.3]} 51... Rf7 {[%clk 0:00:06.8]} 52. Ra4
{[%clk 0:00:18.4]} 52... Kc3 {[%clk 0:00:06.4]} 53. Ra6 {[%clk 0:00:17.3]} 53...
Kb2 {[%clk 0:00:06.6]} 54. Rb6 {[%clk 0:00:15.2]} 54... Ka3 {[%clk 0:00:05.7]}
55. f4 {[%clk 0:00:11.8]} 55... Re7+ {[%clk 0:00:04.9]} 56. Kd4 {[%clk
0:00:12.3]} 56... Rf7 {[%clk 0:00:04.8]} 57. Ke5 {[%clk 0:00:12.2]} 57... Rf5+
{[%clk 0:00:04.7]} 58. Ke4 {[%clk 0:00:12.7]} 58... Rf7 {[%clk 0:00:05.3]} 59.
Ra6+ {[%clk 0:00:13.3]} 59... Kb2 {[%clk 0:00:05.2]} 60. Ra4 {[%clk 0:00:13.4]}
60... Kc3 {[%clk 0:00:05.4]} 61. a3 {[%clk 0:00:13.8]} 61... Kxb3 {[%clk
0:00:02.3]} 62. Rxb4+ {[%clk 0:00:13.8]} 62... Kxa3 {[%clk 0:00:03.2]} 63. Rb6
{[%clk 0:00:14.4]} 63... Rg7 {[%clk 0:00:03.6]} 64. Ke5 {[%clk 0:00:14.1]} 64...
Ka4 {[%clk 0:00:03.9]} 65. Kf6 {[%clk 0:00:14]} 65... Rc7 {[%clk 0:00:04.6]} 66.
Kxg6 {[%clk 0:00:13.6]} 66... Rc4 {[%clk 0:00:05.5]} 67. Kg5 {[%clk 0:00:13.5]}
67... Ka5 {[%clk 0:00:05.2]} 68. Rb1 {[%clk 0:00:13.3]} 68... Rc5+ {[%clk
0:00:05.3]} 69. f5 {[%clk 0:00:13.7]} 69... Ka6 {[%clk 0:00:05.8]} 70. Kg6
{[%clk 0:00:14.1]} 70... Ka7 {[%clk 0:00:06.2]} 71. f6 {[%clk 0:00:14.5]} 1-0

[Event "Late-Titled-Tuesday-Blitz-September-12-2023"]
[Site "Chess.com"]
[Date "2023.09.12"]
[Round "10"]
[White "kingofthenil"]
[Black "ozates"]
[Result "1/2-1/2"]
[WhiteElo "2791"]
[BlackElo "2586"]
[TimeControl "180+1"]
[EndTime "15:51:14 PDT"]
[Termination "Game drawn - insufficient material"]

1. e4 {[%clk 0:02:49.7]} 1... c5 {[%clk 0:02:59.7]} 2. d3 {[%clk 0:02:49.5]}
2... Nc6 {[%clk 0:02:59.8]} 3. g3 {[%clk 0:02:50.4]} 3... g6 {[%clk 0:03:00.1]}
4. Bh6 {[%clk 0:02:51.1]} 4... Bxh6 {[%clk 0:02:59.6]} 5. c3 {[%clk 0:02:51.8]}
5... Bg7 {[%clk 0:02:59.5]} 6. Bg2 {[%clk 0:02:52.7]} 6... d6 {[%clk 0:02:59.8]}
7. f4 {[%clk 0:02:53.1]} 7... e6 {[%clk 0:02:59.5]} 8. Nf3 {[%clk 0:02:53.7]}
8... Nge7 {[%clk 0:03:00.1]} 9. O-O {[%clk 0:02:54.6]} 9... O-O {[%clk
0:03:00.8]} 10. Qe2 {[%clk 0:02:53.4]} 10... Rb8 {[%clk 0:02:59.7]} 11. a4
{[%clk 0:02:53.4]} 11... a6 {[%clk 0:02:58.5]} 12. h4 {[%clk 0:02:44.6]} 12...
h5 {[%clk 0:02:40.4]} 13. Ng5 {[%clk 0:02:43.9]} 13... f6 {[%clk 0:02:29]} 14.
Nh3 {[%clk 0:02:41.5]} 14... f5 {[%clk 0:02:12.4]} 15. Ng5 {[%clk 0:02:41.3]}
15... Qd7 {[%clk 0:02:08.5]} 16. a5 {[%clk 0:02:39]} 16... b5 {[%clk 0:02:06.3]}
17. axb6 {[%clk 0:02:39.3]} 17... Rxb6 {[%clk 0:02:06.6]} 18. Na3 {[%clk
0:02:40]} 18... d5 {[%clk 0:02:01.7]} 19. exd5 {[%clk 0:02:35.1]} 19... exd5
{[%clk 0:02:02]} 20. Rfe1 {[%clk 0:02:35.6]} 20... Bf6 {[%clk 0:01:59.6]} 21.
Qf2 {[%clk 0:02:32.9]} 21... Bxg5 {[%clk 0:01:52.8]} 22. hxg5 {[%clk 0:02:32.4]}
22... Qd6 {[%clk 0:01:48.5]} 23. Re2 {[%clk 0:02:32]} 23... Bd7 {[%clk
0:01:43.8]} 24. Rae1 {[%clk 0:02:32.4]} 24... Rbb8 {[%clk 0:01:40.5]} 25. Nb1
{[%clk 0:01:53.5]} 25... Rbe8 {[%clk 0:01:38.9]} 26. d4 {[%clk 0:01:40.2]} 26...
cxd4 {[%clk 0:01:18.5]} 27. cxd4 {[%clk 0:01:41.1]} 27... Nc8 {[%clk 0:01:18.7]}
28. Nc3 {[%clk 0:01:40.1]} 28... Nb6 {[%clk 0:01:16.3]} 29. Bf1 {[%clk
0:00:45.2]} 29... Rxe2 {[%clk 0:01:14.7]} 30. Rxe2 {[%clk 0:00:46.1]} 30... Qb4
{[%clk 0:01:05.7]} 31. Rd2 {[%clk 0:00:42.3]} 31... Re8 {[%clk 0:01:04.4]} 32.
Bxa6 {[%clk 0:00:40.4]} 32... Nc4 {[%clk 0:01:02.1]} 33. Nxd5 {[%clk 0:00:12]}
33... Qxd2 {[%clk 0:00:55.1]} 34. Bxc4 {[%clk 0:00:08.4]} 34... Qxf2+ {[%clk
0:00:40.9]} 35. Kxf2 {[%clk 0:00:09.3]} 35... Kg7 {[%clk 0:00:32.7]} 36. Nf6
{[%clk 0:00:09.6]} 36... Rd8 {[%clk 0:00:27.7]} 37. d5 {[%clk 0:00:08.7]} 37...
Ne7 {[%clk 0:00:15.1]} 38. Ke3 {[%clk 0:00:08.5]} 38... Be8 {[%clk 0:00:14.7]}
39. Kd4 {[%clk 0:00:08.3]} 39... Bf7 {[%clk 0:00:14.6]} 40. b4 {[%clk
0:00:07.4]} 40... Nc8 {[%clk 0:00:11.2]} 41. b5 {[%clk 0:00:06.1]} 41... Nd6
{[%clk 0:00:11.5]} 42. Bd3 {[%clk 0:00:06.7]} 42... Rb8 {[%clk 0:00:11]} 43. Kc5
{[%clk 0:00:07.2]} 43... Ne4+ {[%clk 0:00:09.7]} 44. Bxe4 {[%clk 0:00:06]} 44...
fxe4 {[%clk 0:00:10]} 45. Nxe4 {[%clk 0:00:06.9]} 45... Bxd5 {[%clk 0:00:09.1]}
46. Kxd5 {[%clk 0:00:06.8]} 46... Rxb5+ {[%clk 0:00:09.7]} 47. Kd4 {[%clk
0:00:07]} 47... Rb3 {[%clk 0:00:09]} 48. Ke5 {[%clk 0:00:06.6]} 48... Re3 {[%clk
0:00:08.8]} 49. Kd4 {[%clk 0:00:07]} 49... Re1 {[%clk 0:00:09]} 50. Kd3 {[%clk
0:00:07.7]} 50... Kf7 {[%clk 0:00:08.6]} 51. Nd2 {[%clk 0:00:07.3]} 51... Ke6
{[%clk 0:00:07.5]} 52. Nf3 {[%clk 0:00:06.9]} 52... Ra1 {[%clk 0:00:07.5]} 53.
Ne5 {[%clk 0:00:05.2]} 53... Kf5 {[%clk 0:00:07.4]} 54. Ke3 {[%clk 0:00:04.9]}
54... Ra3+ {[%clk 0:00:07.4]} 55. Kf2 {[%clk 0:00:05.5]} 55... Rb3 {[%clk
0:00:05.1]} 56. Kg2 {[%clk 0:00:05.6]} 56... Ra3 {[%clk 0:00:04.9]} 57. Kf2
{[%clk 0:00:05.7]} 57... Ra5 {[%clk 0:00:04.9]} 58. Nf3 {[%clk 0:00:05.9]} 58...
Kg4 {[%clk 0:00:04]} 59. Ne5+ {[%clk 0:00:06.1]} 59... Rxe5 {[%clk 0:00:03.9]}
60. fxe5 {[%clk 0:00:06.2]} 60... Kxg5 {[%clk 0:00:04.5]} 61. Ke3 {[%clk
0:00:05.2]} 61... Kf5 {[%clk 0:00:05]} 62. Kd4 {[%clk 0:00:05.7]} 62... Ke6
{[%clk 0:00:04.8]} 63. Ke4 {[%clk 0:00:06.3]} 63... g5 {[%clk 0:00:05.3]} 64.
Kd4 {[%clk 0:00:06.8]} 64... h4 {[%clk 0:00:01.6]} 65. gxh4 {[%clk 0:00:06.1]}
65... gxh4 {[%clk 0:00:02.5]} 66. Ke4 {[%clk 0:00:06.7]} 66... h3 {[%clk
0:00:03.3]} 67. Kf3 {[%clk 0:00:07.3]} 67... Kxe5 {[%clk 0:00:03.6]} 68. Kg3
{[%clk 0:00:07.7]} 68... Kf5 {[%clk 0:00:04.5]} 69. Kxh3 {[%clk 0:00:07.4]}
1/2-1/2